fUST/lending_fUST_20250623
["ID","MTS","AMOUNT","RATE_DAILY","PERIOD"]
[367009281,1750615839581,-200.0,0.0002299,10]
[367009282,1750615839591,-200.0,0.0002299,10]
[367009283,1750615839601,-200.0,0.0002299,10]
[367009285,1750615839611,-200.0,0.0002299,10]
[367009286,1750615839621,-200.0,0.0002299,10]
[367009287,1750615839631,-200.0,0.0002299,10]
[367009288,1750615839640,-200.0,0.0002299,10]
[367009289,1750615839650,-200.0,0.0002299,10]
[367009290,1750615839662,-200.0,0.0002299,10]
[367009291,1750615839671,-200.0,0.0002299,10]
[367009292,1750615839681,-223.899499,0.0002299,10]
[367009293,1750615839691,-3000.0,0.00023,2]
[367009294,1750615839700,-3000.0,0.00023,2]
[367009295,1750615839710,-10004.71226317,0.00023,2]
[367009296,1750615839719,-3000.0,0.0002301,2]
[367009297,1750615839729,-3000.0,0.0002301,2]
[367009298,1750615839738,-3000.0,0.0002302,2]
[367009299,1750615839747,-3000.0,0.0002302,2]
[367009300,1750615839757,-3000.0,0.0002303,2]
[367009301,1750615839766,-3000.0,0.0002303,2]
[367009303,1750615839776,-357.51944104,0.00023038,8]
[367009304,1750615839785,-3000.0,0.0002304,2]
[367009305,1750615839795,-3000.0,0.0002304,2]
[367009306,1750615839804,-3000.0,0.0002305,2]
[367009307,1750615839813,-3000.0,0.0002305,2]
[367009309,1750615839823,-3000.0,0.0002306,2]
[367009310,1750615839832,-3000.0,0.0002306,2]
[367009311,1750615839841,-150.0,0.00023068,2]
[367009312,1750615839851,-965.0,0.00023068,2]
[367009313,1750615839862,-654.0,0.00023068,2]
[367009314,1750615839872,-2161.0,0.00023068,2]
[367009315,1750615839881,-3000.0,0.0002307,2]
[367009316,1750615839891,-3000.0,0.0002307,2]
[367009317,1750615839901,-406.0,0.00023075,2]
[367009318,1750615839911,-4551.690942,0.0002308,2]
[367009319,1750615839920,-3000.0,0.0002308,2]
[367009320,1750615839931,-3000.0,0.0002309,2]
[367009321,1750615839941,-3000.0,0.000231,2]
[367009322,1750615839951,-445.3,0.00023162,5]
[367009323,1750615839961,-357.51944104,0.00023176,8]
[367009324,1750615839971,-307.5017373,0.0002321,2]
[367009325,1750615839980,-159.1115641,0.0002321,2]
[367009326,1750615839990,-177.307752,0.0002321,2]
[367009327,1750615840000,-574.6497757,0.0002321,2]
[367009328,1750615840010,-500.0,0.00023245,2]
[367009329,1750615840020,-500.0,0.00023267,2]
[367009330,1750615840029,-500.0,0.00023276,2]
[367009331,1750615840040,-500.0,0.00023277,8]
[367009332,1750615840051,-800.0,0.00023311,2]
[367009333,1750615840061,-357.51944104,0.00023314,9]
[367009334,1750615840071,-3680.0,0.00023323,2]
[367009335,1750615840081,-800.0,0.00023329,2]
[367009336,1750615840091,-1680.0,0.0002335,2]
[367009337,1750615840100,-3680.0,0.00023359,2]
[367009338,1750615840111,-207.4,0.00023369,2]
[367009339,1750615840120,-5000.0,0.00023369,2]
[367009340,1750615840129,-4118.00609756,0.00023375,2]
[367009341,1750615840139,-800.0,0.00023385,2]
[367009342,1750615840149,-500.0,0.00023408,2]
[367009343,1750615840158,-1000.0,0.00023421,2]
[367009344,1750615840168,-1000.0,0.00023421,2]
[367009345,1750615840178,-1000.0,0.00023421,2]
[367009346,1750615840188,-1000.0,0.00023421,2]
[367009348,1750615840198,-1000.0,0.00023421,2]
[367009349,1750615840207,-502.21511315,0.00023421,2]
[367009350,1750615840217,-1000.0,0.00023421,2]
[367009351,1750615840227,-1000.0,0.00023421,2]
[367009352,1750615840238,-445.3,0.00023438,5]
[367009353,1750615840248,-357.51944104,0.00023452,9]
[367009354,1750615840258,-800.0,0.00023487,2]
[367009355,1750615840268,-1000.0,0.00023499,2]
[367009356,1750615840278,-381.23217875,0.00023521,2]
[367009357,1750615840287,-1017.83945462,0.00023521,2]
[367009358,1750615840297,-1000.0,0.00023521,2]
[367009359,1750615840306,-1000.0,0.00023521,2]
[367009360,1750615840315,-1000.0,0.00023521,2]
[367009361,1750615840325,-1000.0,0.00023521,2]
[367009362,1750615840334,-3680.0,0.00023533,2]
[367009363,1750615840344,-357.51944104,0.0002359,9]
[367009364,1750615840353,-500.0,0.00023629,2]
[367009365,1750615840363,-800.0,0.00023677,2]
[367009366,1750615840372,-800.0,0.00023682,2]
[367009367,1750615840382,-500.0,0.00023693,2]
[367009368,1750615840392,-151.0,0.000237,9]
[367009369,1750615840401,-445.3,0.00023715,6]
[367009370,1750615840411,-357.51944104,0.00023728,9]
[367009371,1750615840421,-153.95703304,0.00023728,2]
[367009372,1750615840430,-800.0,0.00023768,2]
[367009373,1750615840439,-507.70627684,0.00023773,2]
[367009374,1750615840448,-151.0,0.000238,7]
[367009375,1750615840458,-500.0,0.00023824,2]
[367009376,1750615840467,-500.0,0.00023825,9]
[367009377,1750615840476,-500.0,0.0002383,2]
[367009378,1750615840487,-500.0,0.00023838,2]
[367009379,1750615840496,-2952.56143738,0.0002384,2]
[367009380,1750615840506,-500.0,0.0002385,2]
[367009381,1750615840516,-4118.00609756,0.0002385,2]
[367009382,1750615840526,-500.0,0.00023862,2]
[367009383,1750615840535,-500.0,0.00023871,2]
[367009384,1750615840546,-1519.56,0.00023882,2]
[367009385,1750615840556,-1000.0,0.00023882,2]
[367009386,1750615840566,-420.0,0.00023895,2]
[367009387,1750615840575,-868.37053882,0.00023899,15]
[367009388,1750615840584,-234.78,0.00023899,2]
[367009389,1750615840594,-1000.0,0.00023899,2]
[367009390,1750615840604,-1000.0,0.00023899,2]
[367009391,1750615840614,-230.14598372,0.00023926,2]
[367009392,1750615840624,-213.59462818,0.00023926,2]
[367009393,1750615840634,-846.39664074,0.00023926,2]
[367009394,1750615840644,-836.56272071,0.00023926,2]
[367009395,1750615840654,-160.0,0.00023926,2]
[367009396,1750615840663,-160.0,0.00023926,2]
[367009397,1750615840673,-425.01221603,0.00023926,2]
[367009398,1750615840683,-160.0,0.00023926,2]
[367009399,1750615840692,-12551.52821599,0.00023926,2]
[367009400,1750615840702,-160.0,0.00023926,2]
[367009401,1750615840711,-25060.09716264,0.0002394,2]
[367009402,1750615840720,-8369.78443386,0.0002394,2]
[367009403,1750615840730,-809051.42438268,0.0002394,7]
[367009404,1750615841474,-4976.3,0.0002394,7]
[367009405,1750615841495,-4791.78124996,0.0002394,7]
[367009428,1750615843076,-350.91776299,0.00023321,2]
[367009441,1750616065370,326.919901,0.00013699,2]
[367009443,1750616538212,2630.85255533,0.000201,2]
[367009444,1750616554280,5000.0,0.000201,2]
[367009445,1750616569197,5000.0,0.000201,2]
[367009447,1750616584755,2791.27782648,0.000201,2]
[367009448,1750616586412,200.0,0.00024931,120]
[367009449,1750616603417,3813.4665193,0.000201,2]
[367009450,1750616603440,1186.5334807,0.000201,2]
[367009451,1750616619760,4898.0142521,0.000201,2]
[367009452,1750616650578,5000.0,0.000201,2]
[367009453,1750616665630,999.00093615,0.000201,2]
[367009457,1750616770434,960.01122855,0.000189,2]
[367009458,1750616790889,454.59141681,0.000201,2]
[367009459,1750616796876,306.0,0.000201,2]
[367009460,1750616809309,320.00374285,0.000189,2]
[367009462,1750616832145,-326.919901,0.00020187,2]
[367009463,1750616832166,-2309.25352476,0.00020256,2]
[367009464,1750616840442,-2336.91999558,0.00020256,2]
[367009465,1750616845113,-337.51557368,0.00020256,2]
[367009466,1750616845135,-357.23570409,0.00020281,2]
[367009467,1750616845156,-300.0,0.00020907,2]
[367009468,1750616845178,-300.0,0.00020907,2]
[367009469,1750616845198,-500.0,0.00020908,2]
[367009470,1750616845220,-500.0,0.00020908,2]
[367009471,1750616845243,-318.31652279,0.00020908,2]
[367009473,1750616912960,10013.63022787,0.0002,2]
[367009474,1750616915768,3248.64399461,0.0002,2]
[367009475,1750616918930,1185.89253417,0.0002,2]
[367009477,1750616919926,242.85328134,0.0002,7]
[367009478,1750616920052,361.11472355,0.0002,2]
[367009479,1750616920282,2377.04621684,0.0002,2]
[367009480,1750616920467,446.66396446,0.000195,2]
[367009481,1750616920490,1753.87239619,0.000195,2]
[367009482,1750616924350,7612.23268364,0.0002,7]
[367009483,1750616926944,2471.68229156,0.0002,2]
[367009487,1750616928896,3686.7702241,0.0002,2]
[367009488,1750616936583,14577.9012361,0.00019956,2]
[367009489,1750616950815,1897.54116841,0.00019956,2]
[367009490,1750616950839,15107.63967529,0.00019956,2]
[367009512,1750617032074,-3404.50343054,0.00020697,2]
[367009513,1750617032132,-1595.49656946,0.00020697,2]
[367009514,1750617032142,-1200.0,0.00020905,2]
[367009515,1750617032152,-300.0,0.00020906,2]
[367009516,1750617032161,-300.0,0.00020906,2]
[367009517,1750617032171,-300.0,0.00020906,2]
[367009518,1750617032184,-300.0,0.00020906,2]
[367009519,1750617032193,-500.0,0.00020907,2]
[367009520,1750617032203,-500.0,0.00020907,2]
[367009521,1750617032212,-500.0,0.00020907,2]
[367009522,1750617032222,-500.0,0.00020907,2]
[367009523,1750617032231,-500.0,0.00020907,2]
[367009524,1750617032241,-500.0,0.00020907,2]
[367009525,1750617032251,-500.0,0.00020907,2]
[367009527,1750617032261,-500.0,0.00020907,2]
[367009529,1750617032270,-500.0,0.00020907,2]
[367009532,1750617032280,-500.0,0.00020907,2]
[367009533,1750617032289,-500.0,0.00020907,2]
[367009534,1750617032298,-500.0,0.00020907,2]
[367009535,1750617032308,-500.0,0.00020907,2]
[367009536,1750617032318,-500.0,0.00020907,2]
[367009537,1750617032327,-500.0,0.00020907,2]
[367009538,1750617032337,-500.0,0.00020907,2]
[367009539,1750617032346,-314.67675412,0.00020907,2]
[367009540,1750617032355,-500.0,0.00020907,2]
[367009541,1750617032365,-500.0,0.00020907,2]
[367009542,1750617032374,-500.0,0.00020907,2]
[367009543,1750617032383,-245.20661427,0.00020907,2]
[367009544,1750617032393,-527.78630031,0.00020907,2]
[367009545,1750617032403,-500.0,0.00020907,2]
[367009546,1750617032412,-500.0,0.00020907,2]
[367009547,1750617032423,-500.0,0.00020907,2]
[367009548,1750617032432,-500.0,0.00020907,2]
[367009549,1750617032441,-500.0,0.00020907,2]
[367009550,1750617032451,-500.0,0.00020907,2]
[367009551,1750617032460,-441.0289577,0.00020907,2]
[367009552,1750617032471,-500.0,0.00020907,2]
[367009553,1750617032481,-500.0,0.00020907,2]
[367009554,1750617032491,-500.0,0.00020907,2]
[367009555,1750617032501,-195.27723227,0.00020907,2]
[367009556,1750617032511,-550.58197015,0.00020907,2]
[367009557,1750617032520,-500.0,0.00020907,2]
[367009558,1750617032530,-500.0,0.00020907,2]
[367009559,1750617032539,-500.0,0.00020907,2]
[367009560,1750617032548,-500.0,0.00020907,2]
[367009561,1750617032558,-500.0,0.00020907,2]
[367009562,1750617032567,-500.0,0.00020907,2]
[367009563,1750617032577,-500.0,0.00020907,2]
[367009564,1750617032587,-500.0,0.00020907,2]
[367009565,1750617032596,-500.0,0.00020907,2]
[367009566,1750617032606,-237.76275088,0.00020907,2]
[367009567,1750617032619,-262.23724912,0.00020907,2]
[367009568,1750617032629,-500.0,0.00020907,2]
[367009569,1750617032639,-500.0,0.00020907,2]
[367009570,1750617032649,-500.0,0.00020907,2]
[367009571,1750617032659,-651.45491145,0.00020907,2]
[367009572,1750617032669,-500.0,0.00020907,2]
[367009573,1750617032678,-500.0,0.00020907,2]
[367009574,1750617032688,-500.0,0.00020907,2]
[367009575,1750617032697,-500.0,0.00020907,2]
[367009576,1750617032707,-500.0,0.00020907,2]
[367009577,1750617032717,-500.0,0.00020907,2]
[367009578,1750617032726,-500.0,0.00020907,2]
[367009579,1750617032736,-210.25901649,0.00020907,2]
[367009580,1750617032746,-500.0,0.00020907,2]
[367009581,1750617032755,-500.0,0.00020907,2]
[367009582,1750617032764,-500.0,0.00020907,2]
[367009583,1750617032773,-500.0,0.00020907,2]
[367009584,1750617032783,-500.0,0.00020907,2]
[367009585,1750617032792,-500.0,0.00020907,2]
[367009586,1750617032802,-500.0,0.00020907,2]
[367009587,1750617032811,-500.0,0.00020907,2]
[367009588,1750617032821,-500.0,0.00020907,2]
[367009589,1750617032830,-500.0,0.00020907,2]
[367009590,1750617032839,-500.0,0.00020907,2]
[367009591,1750617032849,-261.47228677,0.00020907,2]
[367009592,1750617032858,-500.0,0.00020907,2]
[367009593,1750617032867,-330.43757579,0.00020907,2]
[367009594,1750617032876,-500.0,0.00020907,2]
[367009595,1750617032886,-500.0,0.00020907,2]
[367009596,1750617032895,-478.95289712,0.00020907,2]
[367009656,1750617039454,-21.04710288,0.00020907,2]
[367009657,1750617039463,-238.61067441,0.00020907,2]
[367009658,1750617039506,-261.38932559,0.00020907,2]
[367009659,1750617039515,-500.0,0.00020907,2]
[367009660,1750617039524,-500.0,0.00020907,2]
[367009661,1750617039534,-500.0,0.00020907,2]
[367009662,1750617039543,-500.0,0.00020907,2]
[367009663,1750617039554,-500.0,0.00020907,2]
[367009664,1750617039563,-500.0,0.00020907,2]
[367009665,1750617039574,-500.0,0.00020907,2]
[367009666,1750617039583,-500.0,0.00020907,2]
[367009667,1750617039594,-500.0,0.00020907,2]
[367009668,1750617039603,-500.0,0.00020907,2]
[367009669,1750617039612,-500.0,0.00020907,2]
[367009671,1750617039622,-628.16897087,0.00020907,2]
[367009673,1750617039631,-500.0,0.00020907,2]
[367009675,1750617039640,-500.0,0.00020907,2]
[367009677,1750617039650,-500.0,0.00020907,2]
[367009679,1750617039660,-500.0,0.00020907,2]
[367009682,1750617039670,-500.0,0.00020907,2]
[367009683,1750617039679,-500.0,0.00020907,2]
[367009684,1750617039688,-500.0,0.00020907,2]
[367009685,1750617039698,-500.0,0.00020907,2]
[367009686,1750617039707,-500.0,0.00020907,2]
[367009687,1750617039717,-500.0,0.00020907,2]
[367009688,1750617039726,-500.0,0.00020907,2]
[367009689,1750617039735,-500.0,0.00020907,2]
[367009690,1750617039744,-500.0,0.00020907,2]
[367009692,1750617039755,-500.0,0.00020907,2]
[367009693,1750617039764,-500.0,0.00020907,2]
[367009694,1750617039773,-500.0,0.00020907,2]
[367009695,1750617039783,-500.0,0.00020907,2]
[367009696,1750617039792,-500.0,0.00020907,2]
[367009697,1750617039801,-500.0,0.00020907,2]
[367009699,1750617039810,-500.0,0.00020907,2]
[367009701,1750617039820,-500.0,0.00020907,2]
[367009703,1750617039828,-500.0,0.00020907,2]
[367009705,1750617039838,-500.0,0.00020907,2]
[367009707,1750617039847,-500.0,0.00020907,2]
[367009709,1750617039856,-550.34596627,0.00020907,2]
[367009711,1750617039866,-500.0,0.00020907,2]
[367009713,1750617039875,-178.96501656,0.00020907,2]
[367009715,1750617039884,-500.0,0.00020907,2]
[367009717,1750617039893,-500.0,0.00020907,2]
[367009719,1750617039902,-505.81970154,0.00020907,2]
[367009721,1750617039912,-500.0,0.00020907,2]
[367009723,1750617039921,-500.0,0.00020907,2]
[367009724,1750617039929,-500.0,0.00020907,2]
[367009726,1750617039939,-500.0,0.00020907,2]
[367009728,1750617039948,-500.0,0.00020907,2]
[367009730,1750617039957,-500.0,0.00020907,2]
[367009732,1750617039967,-500.0,0.00020907,2]
[367009734,1750617039976,-500.0,0.00020907,2]
[367009736,1750617039985,-500.0,0.00020907,2]
[367009738,1750617039995,-500.0,0.00020907,2]
[367009740,1750617040005,-500.0,0.00020907,2]
[367009742,1750617040014,-500.0,0.00020907,2]
[367009743,1750617040023,-500.0,0.00020907,2]
[367009744,1750617040033,-500.0,0.00020907,2]
[367009745,1750617040042,-500.0,0.00020907,2]
[367009746,1750617040051,-500.0,0.00020907,2]
[367009748,1750617040060,-500.0,0.00020907,2]
[367009749,1750617040070,-500.0,0.00020907,2]
[367009751,1750617040079,-500.0,0.00020907,2]
[367009752,1750617040089,-500.0,0.00020907,2]
[367009753,1750617040098,-500.0,0.00020907,2]
[367009755,1750617040108,-500.0,0.00020907,2]
[367009756,1750617040117,-500.0,0.00020907,2]
[367009757,1750617040127,-500.0,0.00020907,2]
[367009758,1750617040136,-500.0,0.00020907,2]
[367009759,1750617040146,-500.0,0.00020907,2]
[367009760,1750617040155,-500.0,0.00020907,2]
[367009761,1750617040166,-500.0,0.00020907,2]
[367009762,1750617040178,-500.0,0.00020907,2]
[367009763,1750617040190,-500.0,0.00020907,2]
[367009764,1750617040199,-298.89076067,0.00020907,2]
[367009765,1750617040209,-500.0,0.00020907,2]
[367009766,1750617040219,-500.0,0.00020907,2]
[367009767,1750617040229,-500.0,0.00020907,2]
[367009768,1750617040239,-500.0,0.00020907,2]
[367009769,1750617040251,-500.0,0.00020907,2]
[367009770,1750617040261,-500.0,0.00020907,2]
[367009771,1750617040271,-500.0,0.00020907,2]
[367009772,1750617040281,-500.0,0.00020907,2]
[367009773,1750617040498,-500.0,0.00020907,2]
[367009774,1750617040509,-500.0,0.00020907,2]
[367009775,1750617040519,-500.0,0.00020907,2]
[367009776,1750617040528,-500.0,0.00020907,2]
[367009777,1750617040538,-500.0,0.00020907,2]
[367009778,1750617040547,-500.0,0.00020907,2]
[367009779,1750617040557,-500.0,0.00020907,2]
[367009780,1750617040566,-500.0,0.00020907,2]
[367009781,1750617040575,-500.0,0.00020907,2]
[367009782,1750617040584,-500.0,0.00020907,2]
[367009783,1750617040593,-500.0,0.00020907,2]
[367009784,1750617040602,-500.0,0.00020907,2]
[367009785,1750617040611,-500.0,0.00020907,2]
[367009786,1750617040621,-500.0,0.00020907,2]
[367009787,1750617040630,-500.0,0.00020907,2]
[367009788,1750617040639,-500.0,0.00020907,2]
[367009789,1750617040648,-500.0,0.00020907,2]
[367009790,1750617040657,-500.0,0.00020907,2]
[367009791,1750617040666,-500.0,0.00020907,2]
[367009792,1750617040675,-195.9776068,0.00020907,2]
[367009793,1750617040683,-500.0,0.00020907,2]
[367009794,1750617040692,-353.25058093,0.00020907,2]
[367009795,1750617040701,-500.0,0.00020907,2]
[367009796,1750617040711,-500.0,0.00020907,2]
[367009797,1750617040720,-500.0,0.00020907,2]
[367009798,1750617040729,-500.0,0.00020907,2]
[367009799,1750617040738,-500.0,0.00020907,2]
[367009800,1750617040748,-500.0,0.00020907,2]
[367009801,1750617040758,-500.0,0.00020907,2]
[367009802,1750617040767,-500.0,0.00020907,2]
[367009803,1750617040776,-500.0,0.00020907,2]
[367009804,1750617040785,-500.0,0.00020907,2]
[367009805,1750617040794,-500.0,0.00020907,2]
[367009806,1750617040803,-500.0,0.00020907,2]
[367009807,1750617040812,-500.0,0.00020907,2]
[367009808,1750617040821,-500.0,0.00020907,2]
[367009809,1750617040831,-500.0,0.00020907,2]
[367009810,1750617040841,-500.0,0.00020907,2]
[367009811,1750617040850,-500.0,0.00020907,2]
[367009812,1750617040859,-500.0,0.00020907,2]
[367009813,1750617040868,-500.0,0.00020907,2]
[367009814,1750617040878,-500.0,0.00020907,2]
[367009815,1750617040888,-500.0,0.00020907,2]
[367009816,1750617040897,-500.0,0.00020907,2]
[367009817,1750617040906,-500.0,0.00020907,2]
[367009818,1750617040915,-500.0,0.00020907,2]
[367009819,1750617040924,-500.0,0.00020907,2]
[367009820,1750617040933,-500.0,0.00020907,2]
[367009821,1750617040942,-500.0,0.00020907,2]
[367009822,1750617040951,-500.0,0.00020907,2]
[367009823,1750617040961,-500.0,0.00020907,2]
[367009824,1750617040970,-500.0,0.00020907,2]
[367009825,1750617040979,-500.0,0.00020907,2]
[367009826,1750617040988,-500.0,0.00020907,2]
[367009827,1750617040997,-500.0,0.00020907,2]
[367009828,1750617041006,-500.0,0.00020907,2]
[367009829,1750617041015,-500.0,0.00020907,2]
[367009830,1750617041024,-500.0,0.00020907,2]
[367009831,1750617041033,-500.0,0.00020907,2]
[367009832,1750617041043,-650.0,0.00020907,2]
[367009833,1750617041052,-249.99999999,0.00020907,2]
[367009834,1750617041062,-500.0,0.00020907,2]
[367009835,1750617041071,-7063.83236771,0.00020907,2]
[367009836,1750617041080,-300.0,0.00020908,2]
[367009837,1750617041090,-24458.54625587,0.00020909,2]
[367009838,1750617041109,-441.45374413,0.00020909,2]
[367009839,1750617041119,-244.4534282,0.00020973,2]
[367009840,1750617041129,-503.14017611,0.00020973,2]
[367009841,1750617041138,-500.0,0.00020973,2]
[367009842,1750617041148,-500.0,0.00020973,2]
[367009843,1750617041158,-500.0,0.00020973,2]
[367009844,1750617041167,-500.0,0.00020973,2]
[367009845,1750617041180,-500.0,0.00020973,2]
[367009846,1750617041189,-760.3448217,0.0002099,2]
[367009847,1750617041199,-160.0,0.00021,2]
[367009848,1750617041208,-1782.72,0.00021,2]
[367009849,1750617041218,-174.0,0.00021243,2]
[367009850,1750617041228,-206.703697,0.00021263,2]
[367009851,1750617041237,-174.0,0.00021422,2]
[367009852,1750617041247,-3081.6906027,0.000215,2]
[367009853,1750617041259,-161.14593096,0.00021521,2]
[367009854,1750617041268,-1000.0,0.00021521,2]
[367009855,1750617041277,-1076.98855542,0.00021521,2]
[367009856,1750617041287,-1000.0,0.00021521,2]
[367009857,1750617041296,-160.0,0.00021572,2]
[367009858,1750617041305,-7751.9534646,0.00021577,2]
[367009859,1750617041315,-177.3062424,0.00021734,2]
[367009860,1750617041324,-168.0,0.0002186,2]
[367009861,1750617041334,-174.0,0.00021874,2]
[367009862,1750617041344,-29659.76179272,0.000219,2]
[367009863,1750617041353,-517.71271266,0.000219,6]
[367009864,1750617041363,-168.0,0.00022042,2]
[367009865,1750617041373,-200.0,0.00022062,10]
[367009866,1750617041383,-200.0,0.00022062,10]
[367009867,1750617041392,-200.0,0.00022062,10]
[367009868,1750617041401,-1042.27733271,0.00022068,2]
[367009869,1750617041411,-1500.0,0.00022068,2]
[367009870,1750617041420,-517.71271256,0.00022072,6]
[367009871,1750617041430,-168.0,0.00022098,2]
[367009872,1750617041440,-517.71271256,0.00022245,6]
[367009873,1750617041449,-517.71271256,0.00022417,7]
[367009874,1750617041458,-312.24854692,0.00022431,2]
[367009875,1750617041468,-168.0,0.00022496,2]
[367009876,1750617041477,-355.5,0.00022524,5]
[367009877,1750617041487,-1000.0,0.00022549,2]
[367009878,1750617041497,-1100.67268428,0.00022569,2]
[367009879,1750617041506,-500.0,0.00022573,2]
[367009880,1750617041516,-500.0,0.00022577,7]
[367009881,1750617041526,-517.71271256,0.0002259,7]
[367009882,1750617041536,-160.0,0.00022593,2]
[367009883,1750617041546,-160.0,0.00022593,2]
[367009884,1750617041555,-12551.52821599,0.00022593,2]
[367009885,1750617041564,-1782.72,0.000226,7]
[367009886,1750617041573,-500.0,0.00022616,2]
[367009887,1750617041583,-524.02598587,0.00022623,2]
[367009888,1750617041593,-168.0,0.00022717,2]
[367009889,1750617041603,-250.0,0.00022727,2]
[367009890,1750617041612,-420.0,0.00022743,2]
[367009891,1750617041622,-327.0,0.00022743,2]
[367009892,1750617041631,-420.0,0.00022743,2]
[367009893,1750617041640,-420.0,0.00022745,2]
[367009894,1750617041650,-517.71271256,0.00022762,7]
[367009895,1750617041659,-516.97505606,0.0002277,2]
[367009896,1750617041669,-13907.40045211,0.000228,2]
[367009897,1750617041679,-355.5,0.00022808,5]
[367009898,1750617041688,-522.312,0.00022809,2]
[367009899,1750617041699,-1680.0,0.0002285,2]
[367009900,1750617041709,-470.28,0.00022861,3]
[367009901,1750617041718,-846.39664074,0.0002287,2]
[367009902,1750617041728,-836.56272071,0.0002287,2]
[367009903,1750617041738,-213.59462818,0.0002287,2]
[367009904,1750617041748,-160.0,0.0002287,2]
[367009905,1750617041757,-160.0,0.0002287,2]
[367009906,1750617041767,-425.01221603,0.0002287,2]
[367009907,1750617041777,-517.71271256,0.00022934,8]
[367009908,1750617041787,-153.0,0.00022959,2]
[367009909,1750617041797,-306.1887716,0.00022959,2]
[367009910,1750617041807,-306.0,0.00022959,2]
[367009911,1750617041817,-177.3077519,0.00022959,2]
[367009912,1750617041826,-153.0,0.00022959,2]
[367009913,1750617041836,-159.1115641,0.00022959,2]
[367009914,1750617041845,-177.3077519,0.00022959,2]
[367009915,1750617041854,-153.0,0.00022959,2]
[367009916,1750617041863,-500.0,0.00022973,2]
[367009917,1750617041873,-500.0,0.00022973,2]
[367009918,1750617041882,-500.0,0.00022973,2]
[367009919,1750617041891,-500.0,0.00022973,2]
[367009920,1750617041901,-500.0,0.00022973,2]
[367009921,1750617041910,-500.0,0.00022973,2]
[367009922,1750617041919,-500.0,0.00022973,2]
[367009923,1750617041929,-500.0,0.00022973,2]
[367009924,1750617041938,-500.0,0.00022973,2]
[367009925,1750617041948,-500.0,0.00022973,2]
[367009926,1750617041958,-500.0,0.00022973,2]
[367009927,1750617041968,-500.0,0.00022973,2]
[367009928,1750617041978,-500.0,0.00022973,2]
[367009929,1750617041988,-500.0,0.00022973,2]
[367009930,1750617041998,-399.08065305,0.00022973,2]
[367009931,1750617042007,-500.0,0.00022973,2]
[367009932,1750617042017,-500.0,0.00022973,2]
[367009933,1750617042026,-222.81406767,0.00022973,2]
[367009934,1750617042035,-530.13547856,0.00022973,2]
[367009935,1750617042046,-500.0,0.00022973,2]
[367009936,1750617042056,-246.41409241,0.00022973,2]
[367009937,1750617042065,-585.16842993,0.00022973,2]
[367009938,1750617042074,-500.0,0.00022973,2]
[367009939,1750617042083,-100000.0,0.0002299,2]
[367009940,1750617042093,-751.0,0.00023077,2]
[367009941,1750617042103,-151.0,0.00023077,2]
[367009942,1750617042112,-5888.0,0.00023078,2]
[367009943,1750617042120,-355.5,0.00023092,5]
[367009944,1750617042130,-751.0,0.00023104,2]
[367009945,1750617042139,-151.0,0.00023104,2]
[367009946,1750617042148,-517.71271256,0.00023107,8]